bitfinex/quotes_SOLUSD_20250313
["timestamp","ask_amount","ask_price","bid_price","bid_amount"]
[1741850351576,46.6930491,124.32,124.29,82.27]
[1741850354090,38.6491491,124.32,124.29,82.27]
[1741850354312,38.6491491,124.34,124.29,82.27]
[1741850354616,38.6491491,124.38,124.32,38.6491491]
[1741850354814,38.6491491,124.36,124.33,7.44]
[1741850354998,8.0694,124.39,124.33,7.44]
[1741850354999,38.6491491,124.35,124.33,7.44]
[1741850355186,38.6491491,124.35,124.33,89.71]
[1741850355999,46.6912491,124.35,124.33,82.27]
[1741850356607,38.6491491,124.34,124.3,227.51]
[1741850356783,38.6491491,124.33,124.3,89.71]
[1741850356985,38.6491491,124.33,124.3,82.27]
[1741850357987,46.6928491,124.32,124.3,82.27]
[1741850358391,46.6924491,124.33,124.3,82.27]
[1741850358999,8.0433,124.33,124.3,82.27]
[1741850359331,46.6918491,124.34,124.3,82.27]
[1741850359526,18.79181043,124.38,124.3,82.27]
[1741850359527,38.89251043,124.38,124.3,128.9640491]
[1741850359731,46.6896491,124.37,124.31,38.6491491]
[1741850359945,38.6491491,124.36,124.31,46.6929491]
[1741850361548,38.6491491,124.36,124.3,258.7191491]
[1741850361748,46.6904491,124.36,124.3,266.7639491]
[1741850361942,38.6491491,124.35,124.3,266.7639491]
[1741850362355,38.6491491,124.34,124.3,220.07]
[1741850362549,38.6491491,124.33,124.3,220.07]
[1741850363350,46.6924491,124.33,124.3,220.07]
[1741850365358,38.6491491,124.31,124.29,89.71]
[1741850365548,38.6491491,124.3,124.29,82.27]
[1741850365748,38.6491491,124.31,124.29,82.27]
[1741850366461,38.6491491,124.32,124.29,82.27]
[1741850367048,46.6924491,124.33,124.29,82.27]
[1741850367661,38.6491491,124.32,124.29,82.27]
[1741850368859,38.6491491,124.32,124.28,145.9548]
[1741850369159,46.6924491,124.33,124.29,0.063]
[1741850369660,38.6491491,124.35,124.29,38.7121491]
[1741850369860,38.6491491,124.35,124.29,258.8121491]
[1741850370162,0.03,124.38,124.29,258.8121491]
[1741850370163,38.6491491,124.36,124.3,38.6491491]
[1741850370358,38.6491491,124.37,124.32,38.6491491]
[1741850370536,38.6491491,124.37,124.32,258.7491491]
[1741850370736,0.03,124.38,124.33,38.6491491]
[1741850370951,0.03,124.38,124.34,38.6491491]
[1741850371150,0.03,124.38,124.33,120.9491491]
[1741850371644,0.03,124.38,124.34,8.0424]
[1741850371845,0.03,124.38,124.33,120.9491491]
[1741850372059,0.03,124.38,124.33,128.9919491]
[1741850372257,0.03,124.38,124.37,38.79131067]
[1741850372449,0.03,124.38,124.37,266.29131067]
[1741850373353,0.03,124.39,124.38,38.79131067]
[1741850373743,0.03,124.39,124.38,46.83111067]
[1741850376568,0.03,124.39,124.38,358.83111067]
[1741850377365,0.03,124.39,124.38,578.93111067]
[1741850379167,0.03,124.39,124.38,258.89131067]
[1741850379964,0.03,124.39,124.38,266.93111067]
[1741850381964,0.03,124.39,124.38,266.7889491]
[1741850382272,0.03,124.39,124.38,252.24709847]
[1741850386575,0.03,124.39,124.38,252.38926004]
[1741850386949,0.03,124.39,124.38,252.24709847]
[1741850389380,0.03,124.39,124.38,220.1]
[1741850389887,24.13729847,124.39,124.36,82.3]
[1741850390375,0.03,124.39,124.36,82.3]
[1741850390580,24.10729847,124.37,124.36,82.3]
[1741850390876,24.10729847,124.38,124.36,82.3]
[1741850392884,32.14709847,124.38,124.36,82.3]
[1741850393480,24.10729847,124.38,124.36,82.3]
[1741850394558,24.10729847,124.38,124.36,82.363]
[1741850395672,24.13729847,124.39,124.36,82.363]
[1741850399787,0.03,124.39,124.36,90.4038]
[1741850399957,0.03,124.39,124.36,114.51109847]
[1741850400870,0.03,124.39,124.36,90.4038]
[1741850401059,0.03,124.39,124.36,228.2038]
[1741850401259,0.03,124.39,124.37,24.10729847]
[1741850401661,0.03,124.39,124.38,7.3]
[1741850402789,0.03,124.39,124.36,220.163]
[1741850403089,24.13729847,124.39,124.36,220.163]
[1741850403286,24.13729847,124.39,124.36,82.363]
[1741850403995,24.10729847,124.37,124.36,82.363]
[1741850404160,24.10729847,124.38,124.36,82.363]
[1741850404364,0.03,124.39,124.36,90.4039]
[1741850404675,24.10729847,124.38,124.36,82.363]
[1741850404868,0.03,124.39,124.36,82.363]
[1741850405068,24.13729847,124.39,124.36,82.363]
[1741850405395,24.10729847,124.38,124.36,82.363]
[1741850405687,24.13729847,124.39,124.36,82.363]
[1741850406492,24.13729847,124.39,124.36,90.404]
[1741850406790,0.03,124.39,124.36,228.204]
[1741850407490,0.03,124.39,124.36,252.31129847]
[1741850407788,0.03,124.39,124.36,228.2041]
[1741850408392,0.03,124.39,124.36,220.163]
[1741850408890,24.13729847,124.39,124.36,220.163]
[1741850409088,24.10729847,124.38,124.36,220.163]
[1741850409482,24.10729847,124.37,124.36,220.163]
[1741850409870,24.10729847,124.38,124.36,220.163]
[1741850410392,24.10729847,124.38,124.36,0.063]
[1741850410694,24.10729847,124.37,124.36,0.063]
[1741850411890,24.10729847,124.38,124.36,0.063]
[1741850412592,24.10729847,124.37,124.36,0.063]
[1741850414191,42.8991089,124.37,124.36,0.063]
[1741850415606,32.14779847,124.37,124.36,0.063]
[1741850416308,50.9396089,124.37,124.36,0.063]
[1741850416605,50.79744733,124.37,124.36,0.063]
[1741850416805,32.14779847,124.37,124.36,0.063]
[1741850418304,51.08177047,124.37,124.36,0.063]
[1741850421093,51.08177047,124.37,124.31,82.363]
[1741850421094,24.10729847,124.32,124.31,82.363]
[1741850421286,24.10729847,124.32,124.31,0.063]
[1741850421688,24.10729847,124.33,124.31,0.063]
[1741850422789,24.10729847,124.32,124.31,0.063]
[1741850424320,24.10729847,124.33,124.31,0.063]
[1741850428121,24.10729847,124.34,124.31,0.063]
[1741850428294,20.45491043,124.37,124.31,0.063]
[1741850428295,15.45092369,124.35,124.31,0.063]
[1741850428618,15.45092369,124.35,124.31,82.363]
[1741850428821,20.45491043,124.37,124.31,82.363]
[1741850429022,15.45092369,124.35,124.31,82.363]
[1741850429196,15.45092369,124.36,124.31,83.9058]
[1741850429395,15.45092369,124.37,124.32,21.52842369]
[1741850429817,15.45092369,124.36,124.32,6.0775]
[1741850430206,15.45092369,124.36,124.33,8.0431]
[1741850433421,15.45092369,124.36,124.32,88.3775]
[1741850433717,15.45092369,124.36,124.32,96.421]
[1741850435321,0.03,124.39,124.33,0.28432314]
[1741850435521,0.03,124.39,124.37,15.45092369]
[1741850435704,0.03,124.39,124.37,97.75092369]
[1741850436823,0.03,124.39,124.37,105.79122369]
[1741850437829,0.03,124.39,124.38,15.45092369]
[1741850438326,0.03,124.39,124.38,24.10955845]
[1741850439127,0.03,124.39,124.38,253.86265845]
[1741850439328,0.03,124.39,124.38,272.79663045]
[1741850440625,0.03,124.41,124.4,106.55172002]
[1741850440818,0.03,124.41,124.4,251.65172002]
[1741850441020,0.03,124.41,124.4,227.4]
[1741850441201,0.03,124.41,124.4,251.50955845]
[1741850441820,0.03,124.41,124.4,227.4]
[1741850442627,0.03,124.41,124.4,89.6]
[1741850443826,0.03,124.41,124.4,82.3]
[1741850445324,24.13955845,124.41,124.37,226.1838]
[1741850445528,24.10955845,124.4,124.37,82.3]
[1741850445915,24.10955845,124.39,124.37,82.3]
[1741850446121,24.10955845,124.38,124.37,82.3]
[1741850446326,24.10955845,124.39,124.36,0.063]
[1741850446522,0.03,124.41,124.38,24.10955845]
[1741850446729,0.03,124.41,124.38,113.70955845]
[1741850447333,0.03,124.41,124.38,89.6]
[1741850448331,0.03,124.41,124.38,97.6398]
[1741850448914,0.03,124.41,124.38,89.6]
[1741850449214,0.03,124.41,124.38,97.6397]
[1741850451338,24.13955845,124.41,124.38,89.6]
[1741850452418,0.03,124.41,124.38,89.6]
[1741850453341,0.03,124.41,124.38,97.6398]
[1741850453639,0.03,124.41,124.39,30.67265845]
[1741850453825,0.03,124.41,124.4,24.10955845]
[1741850454021,0.03,124.41,124.4,44.69773045]
[1741850454429,0.03,124.41,124.4,264.79773045]
[1741850454839,0.03,124.41,124.4,272.83623045]
[1741850455022,0.03,124.43,124.41,82.2999]
[1741850455225,0.03,124.43,124.42,31.40955845]
[1741850455923,0.03,124.43,124.42,50.34353045]
[1741850456129,0.03,124.48,124.45,24.10955845]
[1741850456342,0.03,124.48,124.45,244.20945845]
[1741850456729,0.03,124.48,124.46,8.0347]
[1741850457248,0.03,124.48,124.46,15.3347]
[1741850457540,0.03,124.48,124.46,39.44425845]
[1741850457741,0.03,124.48,124.46,251.50945845]
[1741850457942,0.03,124.48,124.46,227.3999]
[1741850458745,0.03,124.48,124.46,251.50945845]
[1741850459844,0.03,124.48,124.47,24.10955845]
[1741850460232,0.03,124.48,124.46,237.0464]
[1741850460436,0.03,124.48,124.46,261.15595845]
[1741850460640,0.03,124.48,124.47,24.10955845]
[1741850461324,0.03,124.48,124.47,32.14355845]
[1741850461524,0.03,124.48,124.47,271.17743045]
[1741850461726,0.03,124.51,124.5,18.933972]
[1741850461943,0.03,124.51,124.5,246.303872]
[1741850462135,0.03,124.51,124.5,270.41343045]
[1741850462829,0.03,124.51,124.5,227.3699]
[1741850463734,0.03,124.51,124.5,82.2699]
[1741850464641,24.13955845,124.51,124.5,82.2699]
[1741850464831,32.17095845,124.51,124.5,82.2699]
[1741850465349,0.03,124.51,124.5,82.2699]
[1741850465741,8.0614,124.51,124.5,82.2699]
[1741850465923,0.03,124.51,124.5,82.2699]
[1741850466128,0.03,124.51,124.5,106.37945845]
[1741850466540,0.03,124.51,124.5,82.2699]
[1741850470925,0.03,124.51,124.5,114.41155845]
[1741850471147,0.03,124.51,124.5,90.302]
[1741850471539,0.03,124.51,124.5,82.2699]
[1741850473541,0.03,124.51,124.5,121.71155845]
[1741850473742,0.03,124.51,124.5,278.44553045]
[1741850473957,0.03,124.51,124.5,280.06673045]
[1741850474250,0.0001,124.51,124.5,280.06673045]
[1741850474761,0.0001,124.51,124.5,592.06673045]
[1741850475866,14.216,124.63,124.53,20.14216157]
[1741850476148,24.10955845,124.6,124.55,24.10955845]
[1741850476545,8.0224,124.65,124.56,24.10955845]
[1741850476748,24.10955845,124.61,124.56,244.17945845]
[1741850477364,20.0,124.63,124.57,24.39388159]
[1741850477566,9.661,124.66,124.59,32.13585845]
[1741850477745,24.10955845,124.63,124.59,90.2962]
[1741850478134,9.661,124.66,124.59,90.2962]
[1741850478334,1.6391,124.66,124.59,252.20575845]
[1741850478548,24.10955845,124.65,124.6,24.10955845]
[1741850478750,24.10955845,124.64,124.59,252.20575845]
[1741850478960,24.10955845,124.63,124.59,228.0962]
[1741850479562,24.10955845,124.64,124.59,252.20575845]
[1741850480254,24.10955845,124.66,124.6,24.10955845]
[1741850480434,24.10955845,124.67,124.62,24.10955845]
[1741850480630,24.10955845,124.66,124.62,7.3]
[1741850480848,24.10955845,124.64,124.62,7.3]
[1741850481351,20.0,124.67,124.62,7.3]
[1741850481535,24.10955845,124.65,124.62,7.3]
[1741850481734,28.0217,124.67,124.6,106.37945845]
[1741850481735,24.10955845,124.63,124.6,82.2699]
[1741850483633,8.0218,124.66,124.6,82.2699]
[1741850483832,24.10955845,124.64,124.6,82.2699]
[1741850484032,24.10955845,124.63,124.6,82.2699]
[1741850484442,8.0218,124.66,124.6,82.2699]
[1741850484644,24.10955845,124.64,124.6,82.2699]
[1741850484843,24.10955845,124.63,124.6,82.2699]
[1741850485461,24.10955845,124.62,124.6,82.2699]
[1741850485755,18.64964886,124.66,124.6,82.2699]
[1741850486059,24.10955845,124.62,124.6,82.2699]
[1741850486456,24.10955845,124.61,124.57,82.2699]
[1741850486663,24.10955845,124.59,124.57,82.2699]
[1741850487149,24.10955845,124.59,124.54,227.3699]
[1741850487548,24.10955845,124.58,124.54,227.3699]
[1741850487750,8.0276,124.57,124.54,227.3699]
[1741850488560,32.13715845,124.57,124.54,227.3699]
[1741850488752,24.10955845,124.56,124.54,82.2699]
[1741850489745,32.13815845,124.56,124.54,82.2699]
[1741850490556,24.10955845,124.56,124.54,82.2699]
[1741850490862,8.0269,124.58,124.54,82.2699]
[1741850491061,24.10955845,124.57,124.54,82.2699]
[1741850492069,24.10955845,124.56,124.54,82.2699]
[1741850492578,8.0269,124.58,124.54,82.2699]
[1741850492881,24.10955845,124.56,124.54,82.2699]
[1741850493049,24.10955845,124.55,124.54,82.2699]
[1741850493953,29.6981,124.58,124.54,82.2699]
[1741850494152,24.10955845,124.56,124.54,82.2699]
[1741850494659,24.10955845,124.56,124.51,227.3699]
[1741850494877,24.10955845,124.56,124.51,89.5699]
[1741850495076,29.6981,124.58,124.51,113.67945845]
[1741850495264,29.6981,124.58,124.51,121.71085845]
[1741850495265,24.10955845,124.56,124.51,121.71085845]
[1741850495852,24.10955845,124.57,124.51,121.71085845]
[1741850496066,24.10955845,124.57,124.51,433.71085845]
[1741850496268,24.10955845,124.57,124.51,114.41085845]
[1741850496575,24.10955845,124.56,124.51,121.71085845]
[1741850496882,24.10955845,124.57,124.51,121.71085845]
[1741850497050,24.10955845,124.57,124.52,24.10955845]
[1741850497251,32.13715845,124.57,124.52,24.10955845]
[1741850497458,32.13715845,124.57,124.51,121.71085845]
[1741850497876,24.10955845,124.56,124.51,121.71085845]
[1741850498775,24.10955845,124.54,124.51,89.5699]
[1741850499255,24.10955845,124.55,124.51,89.5699]
[1741850499680,24.10955845,124.55,124.51,97.6009]
[1741850499979,24.10955845,124.56,124.51,121.71045845]
[1741850500270,24.10955845,124.55,124.51,97.6009]
[1741850500458,0.03,124.59,124.51,97.6012]
[1741850500770,0.03,124.59,124.55,24.10955845]
[1741850500969,0.03,124.59,124.56,8.0282]
[1741850502061,0.03,124.59,124.57,24.10955845]
[1741850502460,0.03,124.59,124.56,33.75645845]
[1741850502778,0.03,124.59,124.57,24.10955845]
[1741850502978,0.03,124.59,124.58,8.0269]
[1741850503178,0.03,124.59,124.58,32.13645845]
[1741850505385,0.03,124.59,124.58,8.0269]
[1741850505958,0.03,124.59,124.57,38.47265845]
[1741850506157,0.03,124.59,124.57,14.3631]
[1741850506574,0.03,124.59,124.57,38.47265845]
[1741850506774,0.03,124.59,124.58,24.10955845]
[1741850507076,0.03,124.59,124.57,38.47265845]
[1741850509272,0.03,124.59,124.57,258.54255845]
[1741850510985,0.03,124.59,124.57,234.433]
[1741850512187,0.03,124.59,124.57,82.2699]
[1741850512384,24.13955845,124.59,124.57,82.2699]
[1741850513287,24.13955845,124.59,124.55,90.2986]
[1741850514786,24.10955845,124.58,124.55,82.2699]
[1741850516476,24.10955845,124.57,124.55,82.2699]
[1741850516987,24.10955845,124.58,124.55,82.2699]
[1741850517175,24.10955845,124.57,124.55,82.2699]
[1741850518173,24.10955845,124.57,124.54,7.3]
[1741850518790,24.10955845,124.55,124.53,82.2699]
[1741850518972,32.13845845,124.55,124.53,82.2699]
[1741850520199,32.13805845,124.56,124.53,82.2699]
[1741850520493,24.10955845,124.56,124.53,82.2699]
[1741850520697,32.13775845,124.56,124.53,82.2699]
[1741850521472,24.10955845,124.55,124.53,82.2699]
[1741850522092,32.13775845,124.56,124.53,82.2699]
[1741850522298,24.10955845,124.55,124.53,82.2699]
[1741850523214,24.10955845,124.55,124.51,82.3329]
[1741850523379,24.10955845,124.54,124.51,82.3329]
[1741850527090,24.10955845,124.52,124.51,0.063]
[1741850527981,32.14035845,124.52,124.51,0.063]
[1741850528695,24.10955845,124.53,124.51,0.063]
[1741850528897,24.10955845,124.54,124.51,0.063]
[1741850530389,24.10955845,124.53,124.51,0.063]
[1741850530910,24.10955845,124.52,124.51,0.063]
[1741850532288,32.14035845,124.52,124.51,0.063]
[1741850534307,24.10955845,124.53,124.51,0.063]
[1741850534494,24.10955845,124.52,124.51,0.063]
[1741850535312,24.10955845,124.53,124.51,0.063]
[1741850535606,24.10955845,124.52,124.51,0.063]
[1741850536197,24.10955845,124.53,124.51,0.063]
[1741850536591,8.0295,124.54,124.51,0.063]
[1741850536809,24.10955845,124.52,124.51,0.063]
[1741850537499,8.0295,124.54,124.51,0.063]
[1741850537690,24.10955845,124.53,124.51,0.063]
[1741850538189,8.0295,124.54,124.51,0.063]
[1741850538390,24.10955845,124.53,124.51,0.063]
[1741850539315,8.0289,124.55,124.51,0.063]
[1741850539516,24.10955845,124.54,124.51,0.063]
[1741850539905,24.10955845,124.53,124.51,0.063]
[1741850540108,24.10955845,124.52,124.51,0.063]
[1741850540619,8.0289,124.55,124.51,0.063]
[1741850540916,24.10955845,124.53,124.51,0.063]
[1741850541094,24.10955845,124.52,124.51,0.063]
[1741850541506,32.14035845,124.52,124.51,0.063]
[1741850542101,8.0308,124.52,124.51,0.063]
[1741850542316,15.40909668,124.52,124.51,0.063]
[1741850543801,23.43989668,124.52,124.51,0.063]
[1741850543998,15.40909668,124.52,124.51,0.063]
[1741850544424,23.43989668,124.52,124.51,0.063]
[1741850545639,15.40909668,124.52,124.51,0.063]
[1741850546229,8.0303,124.53,124.51,0.063]
[1741850546523,15.40909668,124.52,124.51,0.063]
[1741850546953,8.0289,124.55,124.51,0.063]
[1741850547526,15.40909668,124.54,124.51,0.063]
[1741850547825,26.85001043,124.56,124.51,0.063]
[1741850548024,15.40909668,124.54,124.51,0.063]
[1741850548825,15.40909668,124.53,124.51,0.063]
[1741850550323,15.40909668,124.55,124.51,0.063]
[1741850551821,15.40909668,124.54,124.51,0.063]
[1741850552922,8.0295,124.54,124.51,0.063]
[1741850553118,8.029,124.55,124.51,0.063]
[1741850553320,15.40909668,124.54,124.51,0.063]
[1741850553707,23.43859668,124.54,124.51,0.063]
[1741850554005,15.40909668,124.53,124.51,0.063]
[1741850554450,8.0295,124.54,124.51,0.063]
[1741850554723,8.0291,124.55,124.51,0.063]
[1741850554923,15.40909668,124.54,124.51,0.063]
[1741850555619,0.03,124.56,124.52,15.40909668]
[1741850555838,0.03,124.56,124.53,15.40909668]
[1741850556134,0.03,124.56,124.52,15.40909668]
[1741850556820,0.03,124.56,124.53,15.40909668]
[1741850557228,0.03,124.56,124.54,15.40909668]
[1741850557415,0.03,124.56,124.55,15.40909668]
[1741850557609,0.03,124.56,124.55,25.05139668]
[1741850557906,0.03,124.59,124.56,82.2698]
[1741850558103,0.03,124.59,124.58,15.40909668]
[1741850559205,0.03,124.59,124.57,15.40909668]
[1741850559928,0.03,124.59,124.58,23.43599668]
[1741850560300,0.03,124.59,124.58,32.05847926]
[1741850560500,0.03,124.59,124.58,8.0269]
[1741850560729,0.03,124.59,124.58,32.05847926]
[1741850560919,0.03,124.59,124.58,114.32827926]
[1741850561230,0.03,124.59,124.58,106.30137926]
[1741850561944,0.03,124.59,124.58,82.2698]
[1741850562427,0.03,124.59,124.58,114.32827926]
[1741850564325,8.0507,124.68,124.59,0.28432314]
[1741850564506,24.03157926,124.65,124.6,7.44]
[1741850564712,24.03157926,124.64,124.6,227.5098]
[1741850565625,24.03157926,124.65,124.6,227.5098]
[1741850565827,24.03157926,124.64,124.6,227.5098]
[1741850566010,32.05447926,124.65,124.6,251.54137926]
[1741850566215,8.0211,124.67,124.6,259.56687926]
[1741850566419,24.03157926,124.66,124.6,259.56687926]
[1741850566626,24.03157926,124.65,124.6,259.56687926]
[1741850567011,24.03157926,124.65,124.6,251.54137926]
[1741850567439,24.03157926,124.65,124.6,259.56697926]
[1741850567816,24.03157926,124.64,124.6,220.0698]
[1741850568145,24.03157926,124.66,124.6,114.32687926]
[1741850568448,24.03157926,124.66,124.6,252.12687926]
[1741850568625,24.03157926,124.65,124.6,252.12687926]
[1741850568827,24.03157926,124.65,124.6,244.10137926]
[1741850569834,24.03157926,124.65,124.6,220.0698]
[1741850570025,24.03157926,124.64,124.6,220.0698]
[1741850571423,28.0742,124.67,124.6,220.0698]
[1741850571631,24.03157926,124.64,124.6,220.0698]
[1741850571832,24.03157926,124.63,124.6,220.0698]
[1741850572336,24.03157926,124.64,124.6,228.0954]
[1741850572546,24.03157926,124.65,124.6,228.0954]
[1741850572933,24.03157926,124.64,124.6,220.0698]
[1741850573515,24.03157926,124.63,124.6,82.2698]
[1741850573849,24.03157926,124.62,124.6,82.2698]
[1741850574042,20.0,124.66,124.6,220.0698]
[1741850574244,24.03157926,124.65,124.6,106.30137926]
[1741850574744,24.03157926,124.65,124.6,82.2698]
[1741850574945,24.03157926,124.64,124.6,82.2698]
[1741850575550,20.0,124.66,124.6,82.2698]
[1741850575723,24.03157926,124.64,124.6,82.2698]
[1741850576719,24.03157926,124.64,124.6,90.2954]
[1741850577248,24.03157926,124.64,124.6,82.2698]
[1741850577622,24.03157926,124.64,124.6,90.2953]
[1741850577952,24.03157926,124.64,124.6,82.2698]
[1741850578632,24.03157926,124.62,124.6,82.2698]
[1741850578830,8.0233,124.64,124.59,0.063]
[1741850578831,24.03157926,124.61,124.59,0.063]
[1741850579024,24.03157926,124.6,124.59,0.063]
[1741850580743,32.05717926,124.6,124.59,0.063]
[1741850581640,24.03157926,124.61,124.59,0.063]
[1741850581865,24.03157926,124.62,124.59,0.063]
[1741850582350,15.38497145,124.62,124.59,0.063]
[1741850582650,15.38497145,124.61,124.59,0.063]
[1741850583226,15.38497145,124.62,124.59,0.063]
[1741850586046,15.38497145,124.63,124.59,0.063]
[1741850586237,15.41497145,124.64,124.59,82.3328]
[1741850586438,23.43827145,124.64,124.59,82.3328]
[1741850586752,15.41497145,124.64,124.59,97.71777145]
[1741850587428,23.43807145,124.64,124.59,97.71777145]
[1741850587636,15.41497145,124.64,124.59,97.71777145]
[1741850587953,0.03,124.64,124.6,9.6673]
[1741850588269,15.41497145,124.64,124.6,8.2665]
[1741850588424,23.43807145,124.64,124.6,8.2665]
[1741850588627,15.41497145,124.64,124.6,8.2665]
[1741850589149,0.03,124.64,124.6,23.65147145]
[1741850589351,0.03,124.64,124.61,15.38497145]
[1741850589929,0.03,124.64,124.62,15.38497145]
[1741850590135,0.03,124.64,124.62,97.65477145]
[1741850590534,0.03,124.64,124.62,82.2698]
[1741850591971,0.03,124.64,124.62,90.2941]
[1741850592344,0.03,124.64,124.62,105.67907145]
[1741850592951,0.03,124.64,124.62,82.2698]
[1741850593153,15.41497145,124.64,124.62,82.2698]
[1741850593444,15.41497145,124.64,124.6,90.5363]
[1741850593445,15.38497145,124.63,124.6,90.5363]
[1741850593640,15.38497145,124.63,124.6,82.2698]
[1741850594870,15.38497145,124.62,124.6,82.2698]
[1741850595036,23.40997145,124.62,124.6,82.2698]
[1741850595239,15.38497145,124.61,124.6,82.2698]
[1741850595534,15.38497145,124.61,124.59,0.063]
[1741850595755,15.38497145,124.6,124.59,0.063]
[1741850597049,23.41057145,124.6,124.59,0.063]
[1741850597762,23.41057145,124.6,124.54,7.5744]
[1741850598060,15.38497145,124.58,124.54,89.8442]
[1741850598563,15.38497145,124.59,124.54,105.22917145]
[1741850598943,15.38497145,124.58,124.54,89.8442]
[1741850599138,15.38497145,124.55,124.51,0.063]
[1741850599354,15.38497145,124.54,124.51,0.063]
[1741850600162,15.38497145,124.53,124.51,0.063]
[1741850600340,24.0709391,124.53,124.51,0.063]
[1741850600747,24.0709391,124.52,124.51,0.063]
[1741850601153,24.0709391,124.53,124.51,0.063]
[1741850601349,24.0709391,124.52,124.51,0.063]
[1741850602068,24.0709391,124.54,124.51,0.063]
[1741850602867,24.0709391,124.53,124.51,0.063]
[1741850604364,32.1005391,124.54,124.51,0.063]
[1741850604564,24.0709391,124.53,124.51,0.063]
[1741850606170,5.7856262,124.57,124.51,0.063]
[1741850606376,8.0263,124.59,124.52,31.5509391]
[1741850606670,24.0709391,124.57,124.52,31.5509391]
[1741850606861,24.0709391,124.56,124.52,7.48]
[1741850607055,24.0709391,124.55,124.52,7.48]
[1741850609484,24.0709391,124.55,124.51,82.3328]
[1741850609775,32.0998391,124.55,124.51,82.3328]
[1741850610771,24.0709391,124.54,124.51,82.3328]
[1741850611575,24.0709391,124.53,124.51,82.3328]
[1741850611871,24.0709391,124.54,124.51,82.3328]
[1741850612170,24.0709391,124.55,124.51,82.3328]
[1741850612348,24.0709391,124.55,124.51,90.364]
[1741850612674,24.0709391,124.55,124.51,82.3328]
[1741850612856,24.0709391,124.55,124.51,90.3641]
[1741850613373,24.0709391,124.56,124.51,114.4350391]
[1741850613554,24.0709391,124.57,124.51,114.4350391]
[1741850614464,24.0709391,124.57,124.52,24.0709391]
[1741850615055,24.0709391,124.57,124.51,114.4350391]
[1741850615272,24.0709391,124.56,124.51,114.4350391]
[1741850616654,24.0709391,124.56,124.51,426.4350391]
[1741850616850,24.0709391,124.58,124.53,24.0709391]
[1741850617088,24.0709391,124.58,124.54,8.0806]
[1741850617374,24.0709391,124.58,124.54,90.3504]
[1741850617855,24.0709391,124.58,124.54,98.3797]
[1741850618052,0.03,124.59,124.54,98.3797]
[1741850618260,24.0709391,124.58,124.54,98.3797]
[1741850618463,0.03,124.59,124.55,31.5309391]
[1741850618662,0.03,124.59,124.55,113.8007391]
[1741850618850,0.03,124.59,124.55,89.7298]
[1741850619456,32.1272391,124.59,124.55,89.7298]
[1741850619875,24.1009391,124.59,124.55,89.7298]
[1741850620070,24.1009391,124.59,124.55,97.7586]
[1741850620772,24.1009391,124.59,124.55,89.7298]
[1741850620972,24.0709391,124.58,124.55,7.46]
[1741850621172,24.0709391,124.57,124.55,7.46]
[1741850621372,24.0709391,124.56,124.54,90.3504]
[1741850622079,32.0991391,124.56,124.54,90.3504]
[1741850622276,24.0709391,124.55,124.54,82.2698]
[1741850622582,24.0709391,124.55,124.52,89.7098]
[1741850623780,24.0709391,124.53,124.51,1.6981]
[1741850624072,24.0709391,124.54,124.51,1.6981]
[1741850624779,24.0709391,124.55,124.51,9.7295]
[1741850626283,15.40053296,124.55,124.51,9.7295]
[1741850626775,15.40053296,124.54,124.51,1.6981]
[1741850627373,8.0276,124.57,124.51,9.7295]
[1741850627579,15.40053296,124.54,124.51,83.9679]
[1741850627783,15.40053296,124.54,124.51,1.6981]
[1741850627984,15.40053296,124.54,124.51,9.7292]
[1741850629079,15.40053296,124.54,124.51,1.6981]
[1741850629279,15.40053296,124.54,124.51,9.7295]
[1741850629663,15.40053296,124.55,124.51,9.7295]
[1741850630778,15.40053296,124.56,124.51,9.7295]